bitfinex/quotes_BTCUSD_20241013
["timestamp","ask_amount","ask_price","bid_price","bid_amount"]
[1728842163592,0.0047965,62651.0,62646.0,0.03699]
[1728842164529,0.0047965,62647.0,62646.0,0.005]
[1728842164780,0.1644205,62647.0,62646.0,0.006]
[1728842165302,0.1644205,62647.0,62646.0,0.011]
[1728842165802,0.159635,62643.0,62636.0,0.0763]
[1728842166049,0.1644295,62644.0,62636.0,0.235951]
[1728842166296,0.0047965,62641.0,62634.0,0.032809]
[1728842166554,0.395373,62643.0,62634.0,0.032809]
[1728842166555,0.1176089,62635.0,62634.0,0.000819]
[1728842166786,0.2772639,62635.0,62634.0,0.000819]
[1728842167284,0.43848791,62635.0,62634.0,0.000819]
[1728842168001,0.46349609,62635.0,62634.0,0.000819]
[1728842168252,0.69697502,62635.0,62634.0,0.000819]
[1728842168704,0.70397502,62635.0,62634.0,0.000819]
[1728842169448,0.82178742,62635.0,62634.0,0.000819]
[1728842169654,0.82778742,62635.0,62634.0,0.001819]
[1728842169863,0.77001529,62635.0,62634.0,0.001819]
[1728842170079,0.74500711,62635.0,62634.0,0.001819]
[1728842171801,0.74700711,62635.0,62634.0,0.001819]
[1728842172009,0.74500711,62635.0,62634.0,0.001819]
[1728842173297,0.74700711,62635.0,62634.0,0.001819]
[1728842173511,0.74500711,62635.0,62634.0,0.001819]
[1728842174348,0.77001757,62635.0,62634.0,0.001819]
[1728842174605,0.78670274,62635.0,62634.0,0.001819]
[1728842174818,0.80970274,62635.0,62634.0,0.001819]
[1728842175739,0.80270274,62635.0,62634.0,0.001819]
[1728842175962,0.81070274,62635.0,62634.0,0.000819]
[1728842176201,0.81070274,62635.0,62634.0,0.001819]
[1728842176438,0.82470274,62635.0,62634.0,0.001819]
[1728842177189,0.89210274,62635.0,62634.0,0.000819]
[1728842177434,0.97170274,62635.0,62634.0,0.000819]
[1728842177690,1.04124338,62635.0,62634.0,0.001819]
[1728842177940,1.02724338,62635.0,62634.0,0.001819]
[1728842178433,1.04124338,62635.0,62634.0,0.001819]
[1728842178853,1.19509605,62635.0,62634.0,0.001819]
[1728842179072,0.1694765,62625.0,62624.0,0.000819]
[1728842179315,0.78940585,62625.0,62624.0,0.000819]
[1728842179541,0.79140585,62625.0,62624.0,0.000819]
[1728842179754,0.81642057,62625.0,62624.0,0.000819]
[1728842180202,0.79140585,62625.0,62624.0,0.000819]
[1728842180421,0.78492289,62625.0,62624.0,0.000819]
[1728842180692,0.79592289,62625.0,62624.0,0.000819]
[1728842181171,0.62607022,62625.0,62624.0,0.000819]
[1728842181401,0.44170051,62625.0,62624.0,0.000819]
[1728842181644,0.60955318,62625.0,62624.0,0.000819]
[1728842182121,0.62255318,62625.0,62624.0,0.000819]
[1728842183269,0.6475686,62625.0,62624.0,0.000819]
[1728842183490,0.80893831,62625.0,62624.0,0.000819]
[1728842184163,0.81171774,62625.0,62624.0,0.000819]
[1728842185990,0.37749536,62625.0,62624.0,0.000819]
[1728842186458,0.87749536,62625.0,62624.0,0.000819]
[1728842186892,0.86649536,62625.0,62624.0,0.000819]
[1728842187109,0.85349536,62625.0,62624.0,0.000819]
[1728842187391,0.96171593,62625.0,62624.0,0.001819]
[1728842187620,0.95071593,62625.0,62624.0,0.000819]
[1728842187860,0.96371593,62625.0,62624.0,0.000819]
[1728842188100,0.97271593,62625.0,62624.0,0.001819]
[1728842188346,0.95986163,62625.0,62624.0,0.001819]
[1728842188590,0.79849192,62625.0,62624.0,0.001819]
[1728842189104,0.7734765,62625.0,62624.0,0.001819]
[1728842189330,0.2734765,62625.0,62624.0,0.001819]
[1728842190011,0.2744765,62625.0,62624.0,0.000819]
[1728842190238,0.27725582,62625.0,62624.0,0.000819]
[1728842190441,0.44447983,62625.0,62624.0,0.001819]
[1728842190630,0.5764636,62625.0,62624.0,0.001819]
[1728842190903,0.5834636,62625.0,62624.0,0.001819]
[1728842191377,0.44147983,62625.0,62624.0,0.001819]
[1728842192089,0.65687314,62625.0,62624.0,0.001819]
[1728842192300,0.65887314,62625.0,62624.0,0.001819]
[1728842192727,0.68187314,62625.0,62624.0,0.001819]
[1728842193389,0.67487314,62625.0,62624.0,0.001819]
[1728842193647,0.83624285,62625.0,62624.0,0.001819]
[1728842193864,0.85024285,62625.0,62624.0,0.001819]
[1728842194320,1.36324285,62625.0,62624.0,0.002819]
[1728842197673,1.3882601,62625.0,62624.0,0.002819]
[1728842200233,1.36324285,62625.0,62624.0,0.002819]
[1728842200464,1.36124285,62625.0,62624.0,0.002819]
[1728842201141,1.31870221,62625.0,62624.0,0.002819]
[1728842201381,1.32070221,62625.0,62624.0,0.002819]
[1728842201839,1.12784954,62625.0,62624.0,0.002819]
[1728842202096,1.29570221,62625.0,62624.0,0.002819]
[1728842204184,1.12784954,62625.0,62624.0,0.002819]
[1728842204423,1.1593477,62625.0,62624.0,0.002819]
[1728842205112,0.98649503,62625.0,62624.0,0.002819]
[1728842205338,0.98649503,62625.0,62624.0,0.080319]
[1728842206040,0.97249503,62625.0,62624.0,0.080319]
[1728842206267,0.96749503,62625.0,62624.0,0.078319]
[1728842206733,0.95349503,62625.0,62624.0,0.078319]
[1728842207195,0.53779452,62625.0,62624.0,0.34007167]
[1728842207485,0.53779452,62625.0,62624.0,0.172219]
[1728842207924,0.70947452,62625.0,62624.0,0.172219]
[1728842208152,0.69747452,62625.0,62624.0,0.172219]
[1728842208600,0.68747452,62625.0,62624.0,0.172219]
[1728842208827,0.69747452,62625.0,62624.0,0.172219]
[1728842209494,0.68747452,62625.0,62624.0,0.172219]
[1728842209713,0.68947452,62625.0,62624.0,0.172219]
[1728842210161,0.66445932,62625.0,62624.0,0.172219]
[1728842210395,0.50477932,62625.0,62624.0,0.172219]
[1728842210613,0.66445932,62625.0,62624.0,0.172219]
[1728842213361,0.16445932,62625.0,62624.0,0.172219]
[1728842214027,0.00477932,62625.0,62624.0,0.172219]
[1728842214247,0.16445932,62625.0,62624.0,0.172219]
[1728842214708,0.00477932,62625.0,62624.0,0.172219]
[1728842214918,0.16445932,62625.0,62624.0,0.172219]
[1728842219266,0.00477932,62625.0,62624.0,0.331902]
[1728842219483,0.00477932,62625.0,62624.0,0.172219]
[1728842220125,0.16445932,62625.0,62624.0,0.172219]
[1728842222548,0.00477932,62625.0,62624.0,0.331902]
[1728842222755,0.00477932,62625.0,62624.0,0.172219]
[1728842226038,0.00477932,62625.0,62624.0,0.331902]
[1728842230641,0.00277932,62625.0,62624.0,0.331902]
[1728842230864,0.00477932,62625.0,62624.0,0.331902]
[1728842231328,0.00277932,62625.0,62624.0,0.334902]
[1728842231805,0.00277932,62625.0,62624.0,0.335902]
[1728842233877,0.00277932,62625.0,62624.0,0.4488978]
[1728842236852,0.00277932,62625.0,62624.0,0.64211181]
[1728842237106,0.24042122,62638.0,62624.0,0.64211181]
[1728842237107,0.24042122,62638.0,62633.0,0.15966]
[1728842237347,0.00277336,62635.0,62633.0,0.72167561]
[1728842237569,0.24042122,62638.0,62633.0,0.75866545]
[1728842237776,0.24042122,62638.0,62633.0,0.64566965]
[1728842237990,0.24042122,62638.0,62633.0,0.70036106]
[1728842238871,0.00264,62634.0,62633.0,0.70336106]
[1728842239541,0.00364,62634.0,62633.0,0.70636088]
[1728842240435,0.00364,62634.0,62633.0,0.70136122]
[1728842241767,0.00364,62634.0,62633.0,0.37245]
[1728842242662,0.00264,62634.0,62633.0,0.36945]
[1728842242879,0.00364,62634.0,62633.0,0.37245]
[1728842243356,0.00364,62634.0,62633.0,0.006]
[1728842243357,0.1680935,62634.0,62633.0,0.006]
[1728842243840,0.1680935,62634.0,62633.0,0.001]
[1728842244062,0.1670935,62634.0,62633.0,0.001]
[1728842244282,0.0047965,62632.0,62622.0,0.0776]
[1728842244495,0.0047965,62632.0,62626.0,0.24042122]
[1728842244706,0.159675,62628.0,62624.0,0.160501]
[1728842244919,0.319334,62631.0,62624.0,0.160501]
[1728842245151,0.159676,62627.0,62624.0,0.160501]
[1728842245794,0.159673,62628.0,62624.0,0.160501]
[1728842246475,0.003,62627.0,62625.0,0.159679]
[1728842246688,0.003,62627.0,62624.0,0.000819]
[1728842246915,0.159676,62627.0,62624.0,0.160502]
[1728842247357,0.159678,62626.0,62624.0,0.000819]
[1728842247778,0.159677,62627.0,62624.0,0.000819]
[1728842248436,0.159678,62626.0,62624.0,0.000819]
[1728842248676,0.161678,62626.0,62624.0,0.000819]
[1728842249134,0.004,62627.0,62624.0,0.160501]
[1728842249355,0.007,62627.0,62624.0,0.160501]
[1728842249839,0.163676,62627.0,62624.0,0.000819]
[1728842250061,0.15968,62625.0,62624.0,0.000819]
[1728842250284,0.1644765,62625.0,62624.0,0.000819]
[1728842251471,0.38768956,62625.0,62624.0,0.000819]
[1728842251685,0.32570051,62625.0,62624.0,0.000819]
[1728842253251,0.35271243,62625.0,62624.0,0.000819]
[1728842253918,0.35071243,62625.0,62624.0,0.000819]
[1728842254139,0.03501192,62625.0,62624.0,0.000819]
[1728842254357,0.03501192,62625.0,62624.0,0.160502]
[1728842255038,0.04401192,62625.0,62624.0,0.160502]
[1728842255282,0.04401192,62625.0,62624.0,0.000819]
[1728842255541,0.02501192,62625.0,62624.0,0.000819]
[1728842255936,0.19169192,62625.0,62624.0,0.000819]
[1728842256150,0.18869192,62625.0,62624.0,0.000819]
[1728842256391,0.18469192,62625.0,62624.0,0.000819]
[1728842256594,0.18669192,62625.0,62624.0,0.000819]
[1728842257486,0.02701192,62625.0,62624.0,0.000819]
[1728842257946,0.02701192,62625.0,62624.0,0.160502]
[1728842257950,0.02701192,62625.0,62624.0,0.000819]
[1728842260043,0.002,62625.0,62624.0,0.000819]
[1728842260291,0.16168,62625.0,62624.0,0.000819]
[1728842261002,0.16445448,62625.0,62624.0,0.000819]
[1728842261215,0.16445448,62625.0,62622.0,0.155506]
[1728842261447,0.16168,62625.0,62622.0,0.155506]
[1728842262157,0.002,62625.0,62623.0,0.159684]
[1728842262385,0.1644745,62626.0,62623.0,0.159684]
[1728842262611,0.15968,62625.0,62620.0,0.0776]
[1728842262846,0.16168,62625.0,62621.0,0.15969]
[1728842263073,0.16168,62625.0,62621.0,0.159689]
[1728842263304,0.15968,62625.0,62622.0,0.000819]
[1728842263538,0.16168,62625.0,62622.0,0.000819]
[1728842263978,0.15968,62625.0,62622.0,0.000819]
[1728842264467,0.16168,62625.0,62622.0,0.000819]
[1728842265159,0.002,62625.0,62623.0,0.159684]
[1728842265436,0.002,62625.0,62622.0,0.000819]
[1728842265666,0.159681,62625.0,62622.0,0.000819]
[1728842265891,0.161681,62625.0,62622.0,0.160505]
[1728842266338,0.161681,62625.0,62622.0,0.000819]
[1728842267956,0.002,62625.0,62622.0,0.000819]
[1728842268403,0.16168,62625.0,62622.0,0.000819]
[1728842268845,0.159683,62624.0,62622.0,0.000819]
[1728842269064,0.159685,62623.0,62622.0,0.000819]
[1728842269987,0.1644815,62623.0,62622.0,0.000819]
[1728842270197,0.40622646,62623.0,62622.0,0.000819]
[1728842270421,0.40622646,62623.0,62622.0,0.001819]
[1728842270661,0.40622646,62623.0,62622.0,0.000819]
[1728842270883,0.32570551,62623.0,62622.0,0.000819]
[1728842272497,0.32570551,62623.0,62622.0,0.002819]
[1728842273150,0.35671768,62623.0,62622.0,0.000819]
[1728842273618,0.35971768,62623.0,62622.0,0.000819]
[1728842275245,0.36971768,62623.0,62622.0,0.000819]
[1728842280030,0.34470551,62623.0,62622.0,0.000819]
[1728842280265,0.42040551,62623.0,62622.0,0.000819]
[1728842280946,0.1834815,62623.0,62622.0,0.000819]
[1728842281863,0.1862555,62623.0,62622.0,0.000819]
[1728842283187,0.1834815,62623.0,62622.0,0.000819]
[1728842288157,0.1851195,62623.0,62622.0,0.000819]
[1728842288641,0.0254345,62623.0,62622.0,0.000819]
[1728842288879,0.1851195,62623.0,62622.0,0.000819]
[1728842290482,0.0254345,62623.0,62622.0,0.000819]
[1728842290974,0.1851195,62623.0,62622.0,0.000819]
[1728842299314,0.1751195,62623.0,62622.0,0.000819]
[1728842299783,0.1811195,62623.0,62622.0,0.000819]
[1728842300260,0.1721195,62623.0,62622.0,0.000819]
[1728842300487,0.159688,62622.0,62621.0,0.071819]
[1728842300715,0.1644845,62622.0,62621.0,0.071819]
[1728842301909,0.1684845,62622.0,62621.0,0.071819]
[1728842303287,0.1734845,62622.0,62621.0,0.071819]
[1728842309155,0.0137965,62622.0,62621.0,0.071819]
[1728842309405,0.1734845,62622.0,62621.0,0.071819]
[1728842311055,0.1734845,62622.0,62621.0,0.231509]
[1728842311056,0.009,62622.0,62621.0,0.231509]
[1728842311290,0.009,62622.0,62621.0,0.44094241]
[1728842311539,0.009,62622.0,62621.0,0.75092431]
[1728842311761,0.009,62622.0,62621.0,0.65499313]
[1728842311991,0.009,62622.0,62621.0,0.5369589]
[1728842312228,0.005,62622.0,62621.0,0.65683424]
[1728842312467,0.005,62622.0,62621.0,0.74589427]
[1728842312706,0.006,62622.0,62621.0,0.63667986]
[1728842312935,0.006,62622.0,62621.0,0.5407779]
[1728842313167,0.006,62622.0,62621.0,0.65381131]
[1728842313391,0.006,62622.0,62621.0,0.6366614]
[1728842313392,0.001,62622.0,62621.0,0.6366614]
[1728842313615,0.001,62622.0,62621.0,0.6396614]
[1728842314104,0.001,62622.0,62621.0,0.63666163]
[1728842314350,0.001638,62623.0,62622.0,0.191678]
[1728842314609,0.001638,62623.0,62622.0,0.26358109]
[1728842315760,0.001638,62623.0,62622.0,0.26677451]
[1728842316021,0.002638,62623.0,62622.0,0.27077451]
[1728842316252,0.002638,62623.0,62622.0,0.27076376]
[1728842316473,0.002638,62623.0,62622.0,0.19887142]
[1728842316702,0.003638,62623.0,62622.0,0.20287142]
[1728842317424,0.003638,62623.0,62622.0,0.2507894]
[1728842318312,0.003638,62623.0,62622.0,0.3296894]
[1728842318560,0.003638,62623.0,62622.0,0.42179598]
[1728842323223,0.003638,62623.0,62622.0,0.373878]
[1728842324605,0.003638,62623.0,62622.0,0.374697]
[1728842328225,0.003638,62623.0,62622.0,0.53592101]
[1728842328442,0.003638,62623.0,62622.0,0.8085233]
[1728842328711,0.003638,62623.0,62622.0,0.71272025]
[1728842328906,0.003638,62623.0,62622.0,0.83267756]
[1728842331826,0.003638,62623.0,62622.0,0.85567756]
[1728842334407,0.003638,62623.0,62622.0,0.73592375]
[1728842335130,0.003638,62623.0,62622.0,0.85567756]
[1728842335365,0.003638,62623.0,62622.0,0.73592375]
[1728842338414,0.003638,62623.0,62622.0,0.83162032]
[1728842339111,0.003638,62623.0,62622.0,0.94465373]
[1728842344732,0.003638,62623.0,62622.0,0.96871097]
[1728842344947,0.003638,62623.0,62622.0,0.84895716]
[1728842345165,0.003638,62623.0,62622.0,0.85093716]
[1728842345685,0.002638,62623.0,62622.0,0.84693716]
[1728842346108,0.003638,62623.0,62622.0,0.85293716]
[1728842346308,0.002638,62623.0,62622.0,0.84893716]
[1728842346533,0.001638,62623.0,62622.0,0.94293716]
[1728842346760,0.001638,62625.0,62624.0,0.4900565]
[1728842346974,0.001638,62625.0,62624.0,0.99101828]
[1728842348064,0.001638,62625.0,62624.0,0.99079067]
[1728842349381,0.003638,62625.0,62624.0,2.27119067]
[1728842349610,0.001638,62633.0,62632.0,0.0002035]
[1728842349814,0.001638,62633.0,62632.0,0.8167848]
[1728842350024,0.001638,62633.0,62632.0,0.99016384]
[1728842350468,0.001638,62633.0,62632.0,1.05413284]
[1728842350885,0.002638,62633.0,62632.0,1.06813284]
[1728842351308,0.002638,62633.0,62632.0,0.94858696]
[1728842351515,0.002638,62633.0,62632.0,1.0681116]
[1728842352132,0.001638,62633.0,62632.0,1.0541116]
[1728842352341,0.001638,62633.0,62632.0,1.0681116]
[1728842352571,0.003638,62633.0,62632.0,1.0811116]
[1728842352771,0.002638,62633.0,62632.0,1.06801606]
[1728842353229,0.003638,62633.0,62632.0,1.08201606]
[1728842353620,0.003638,62633.0,62632.0,1.09827806]
[1728842354726,0.003638,62633.0,62632.0,1.11042056]
[1728842355556,0.003638,62633.0,62632.0,0.99738715]
[1728842355769,0.003638,62633.0,62632.0,0.93341815]
[1728842356993,0.003638,62633.0,62632.0,0.81389735]
[1728842358691,0.003638,62633.0,62632.0,0.93342017]
[1728842360615,0.003638,62633.0,62632.0,0.80637767]
[1728842360900,0.003638,62633.0,62632.0,0.42868468]
[1728842361104,0.003638,62633.0,62632.0,0.38087601]
[1728842361522,0.002638,62633.0,62632.0,0.36687601]
[1728842361734,0.001638,62633.0,62632.0,0.191652]
[1728842361940,0.003638,62633.0,62632.0,0.173662]
[1728842362421,0.163298,62633.0,62632.0,0.014]
[1728842362643,0.337398,62633.0,62632.0,0.014]
[1728842363279,0.336398,62633.0,62632.0,0.006]
[1728842363707,0.336398,62633.0,62632.0,0.009]
[1728842364139,0.336398,62633.0,62632.0,0.006]
[1728842364360,0.343398,62633.0,62632.0,0.007]
[1728842364829,0.336398,62633.0,62632.0,0.006]
[1728842365268,0.341398,62633.0,62632.0,0.001]
[1728842365946,0.341398,62633.0,62632.0,0.002]
[1728842366426,0.341398,62633.0,62632.0,0.001]
[1728842366647,0.159666,62631.0,62627.0,0.159675]
[1728842367325,0.159666,62631.0,62628.0,0.159672]
[1728842367558,0.500063,62633.0,62624.0,0.319361]
[1728842367770,0.500063,62633.0,62627.0,0.159674]
[1728842367771,0.159668,62630.0,62627.0,0.159674]
[1728842368406,0.00277881,62629.0,62627.0,0.159674]
[1728842368916,0.003,62631.0,62627.0,0.159674]
[1728842369363,0.004,62630.0,62626.0,0.319353]
[1728842369577,0.004,62630.0,62629.0,0.15967]
[1728842370800,0.004,62630.0,62627.0,0.31935]
[1728842370801,0.083038,62633.0,62627.0,0.31935]
[1728842371248,0.002,62630.0,62629.0,0.15967]
[1728842371466,0.005,62631.0,62629.0,0.15967]
[1728842371679,0.242698,62633.0,62629.0,0.15967]
[1728842371680,0.001,62630.0,62629.0,0.15967]
[1728842372122,0.242699,62633.0,62629.0,0.15967]
[1728842372351,0.242699,62633.0,62627.0,0.31935]
[1728842372352,0.248699,62633.0,62630.0,0.159667]
[1728842372840,0.083038,62633.0,62630.0,0.159667]
[1728842373246,0.242698,62633.0,62630.0,0.159667]
[1728842373480,0.246698,62633.0,62630.0,0.159667]
[1728842373689,0.087038,62633.0,62630.0,0.159667]
[1728842374201,0.250698,62633.0,62630.0,0.159667]
[1728842374423,0.242698,62633.0,62630.0,0.159667]
[1728842374641,0.246698,62633.0,62629.0,0.15967]
[1728842375074,0.252698,62633.0,62630.0,0.001]
[1728842375546,0.246698,62633.0,62629.0,0.15967]
[1728842375969,0.252698,62633.0,62629.0,0.16067]
[1728842376418,0.248698,62633.0,62629.0,0.16067]
[1728842376879,0.252698,62633.0,62629.0,0.16067]
[1728842379602,0.252698,62633.0,62630.0,0.159667]
[1728842380536,0.248698,62633.0,62630.0,0.159667]
[1728842380767,0.242698,62633.0,62630.0,0.159667]
[1728842380973,0.252698,62633.0,62630.0,0.160667]
[1728842381622,0.252698,62633.0,62630.0,0.001]
[1728842382540,0.252698,62633.0,62630.0,0.160667]
[1728842383289,0.248698,62633.0,62630.0,0.160667]
[1728842383511,0.245698,62633.0,62630.0,0.159667]
[1728842383728,0.250698,62633.0,62630.0,0.159667]
[1728842384198,0.242698,62633.0,62630.0,0.159667]
[1728842384661,0.252698,62633.0,62630.0,0.160667]
[1728842385119,0.252698,62633.0,62626.0,0.24042122]
[1728842385120,0.087038,62633.0,62626.0,0.24042122]
[1728842385329,0.088038,62633.0,62630.0,0.159666]
[1728842386043,0.088038,62633.0,62629.0,0.319338]
[1728842386269,0.088038,62633.0,62631.0,0.159664]
[1728842386493,0.083038,62633.0,62630.0,0.159667]
[1728842386712,0.086038,62633.0,62630.0,0.159667]
[1728842386944,0.092038,62633.0,62630.0,0.160667]
[1728842387355,0.089038,62633.0,62630.0,0.159667]
[1728842387581,0.091038,62633.0,62630.0,0.159667]
[1728842387805,0.094038,62633.0,62630.0,0.159667]
[1728842388038,0.089038,62633.0,62630.0,0.159667]
[1728842388482,0.094038,62633.0,62630.0,0.159667]
[1728842388738,0.012638,62633.0,62632.0,0.159662]
[1728842389673,0.007638,62633.0,62632.0,0.159662]
[1728842389896,0.006638,62633.0,62632.0,0.159662]
[1728842390107,0.009638,62633.0,62632.0,0.159662]
[1728842395923,0.004638,62633.0,62632.0,0.159662]
[1728842396159,0.006638,62633.0,62632.0,0.159662]
[1728842396605,0.004638,62633.0,62632.0,0.159662]
[1728842396841,0.001638,62633.0,62632.0,0.159662]
[1728842397096,0.001638,62633.0,62632.0,0.161662]
[1728842397580,0.001638,62633.0,62632.0,0.159662]
[1728842397805,0.001638,62633.0,62632.0,0.161662]
[1728842399177,0.001638,62633.0,62632.0,0.159662]
[1728842399403,0.001638,62633.0,62632.0,0.161662]
[1728842400852,0.001638,62633.0,62632.0,0.159662]
[1728842402411,0.005638,62633.0,62632.0,0.159662]
[1728842402625,0.004638,62633.0,62628.0,0.04786068]
[1728842402849,0.161299,62633.0,62628.0,0.159671]
[1728842403067,0.002638,62633.0,62629.0,0.159669]
[1728842403299,0.005638,62633.0,62629.0,0.159669]
[1728842403771,0.001638,62633.0,62629.0,0.159669]
[1728842403986,0.164299,62633.0,62627.0,0.479023]
[1728842404207,0.165299,62633.0,62627.0,0.479023]
[1728842404442,0.165299,62633.0,62628.0,0.159671]
[1728842405614,0.35345463,62632.0,62627.0,0.04786068]
[1728842405842,0.102838,62633.0,62625.0,0.000819]
[1728842405843,0.11782991,62629.0,62625.0,0.000819]
[1728842406131,0.159678,62626.0,62625.0,0.000819]
[1728842406357,0.3241485,62627.0,62625.0,0.000819]
[1728842406358,0.0047965,62627.0,62625.0,0.000819]
[1728842406806,0.421159,62633.0,62632.0,0.159662]
[1728842406807,0.002638,62633.0,62632.0,0.159662]
[1728842407270,0.001638,62633.0,62632.0,0.159662]
[1728842407724,0.001638,62633.0,62632.0,0.20761123]
[1728842407944,0.001638,62633.0,62632.0,0.30201123]
[1728842408176,0.001638,62633.0,62632.0,0.40495302]
[1728842408409,0.001638,62633.0,62632.0,0.58196504]
[1728842408893,0.001638,62633.0,62632.0,0.40495302]
[1728842409384,0.001638,62633.0,62632.0,0.58195782]
[1728842409618,0.018638,62633.0,62632.0,0.58295782]
[1728842409855,0.013638,62633.0,62632.0,0.58295782]
[1728842410110,0.013638,62633.0,62632.0,0.88114558]
[1728842410369,0.002638,62633.0,62632.0,0.81342422]
[1728842410593,0.002638,62633.0,62632.0,0.84841422]
[1728842410852,0.002638,62633.0,62632.0,0.99417976]
[1728842411093,0.001638,62633.0,62632.0,0.84261772]
[1728842411313,0.002638,62633.0,62632.0,0.95259772]
[1728842411965,0.002638,62633.0,62632.0,1.11012706]
[1728842412203,0.002638,62633.0,62632.0,1.10712706]
[1728842412553,0.002638,62633.0,62632.0,1.09912706]
[1728842412664,0.002638,62633.0,62632.0,1.10412706]
[1728842412665,0.001638,62633.0,62632.0,1.10412706]
[1728842412896,0.002638,62633.0,62632.0,1.11412706]
[1728842413131,0.002638,62633.0,62632.0,1.11131074]
[1728842413613,0.003638,62633.0,62632.0,0.9775775]
[1728842413854,0.004638,62633.0,62632.0,0.9905775]
[1728842414780,0.004638,62633.0,62632.0,2.2449575]
[1728842415001,0.00164,62634.0,62633.0,0.3168335]
[1728842415229,0.00164,62634.0,62633.0,0.82856231]
[1728842415488,0.24042122,62646.0,62645.0,0.61438932]
[1728842415726,0.24042122,62646.0,62645.0,0.83958472]
[1728842415974,0.00277785,62659.0,62654.0,0.191596]
[1728842416210,0.1643775,62664.0,62654.0,0.191596]
[1728842416432,0.0047965,62664.0,62661.0,0.159588]
[1728842417119,0.0047965,62664.0,62654.0,0.03199]
[1728842417120,0.159583,62663.0,62659.0,0.159593]
[1728842417338,0.0047965,62664.0,62658.0,0.319192]
[1728842417569,0.0047965,62664.0,62660.0,0.15959]
[1728842417570,0.1643785,62664.0,62660.0,0.15959]
[1728842418709,0.1643785,62664.0,62661.0,0.159588]
[1728842419405,0.001,62662.0,62661.0,0.159588]
[1728842420503,0.0047965,62664.0,62661.0,0.159588]
[1728842420724,0.1663775,62664.0,62661.0,0.159588]
[1728842420938,0.1643775,62664.0,62661.0,0.159588]
[1728842421422,0.1643775,62664.0,62661.0,0.001]
[1728842422114,0.1643775,62664.0,62660.0,0.15959]
[1728842422562,0.1653775,62664.0,62660.0,0.15959]
[1728842423948,0.0057965,62664.0,62661.0,0.159586]
[1728842424172,0.1643775,62664.0,62660.0,0.159591]
[1728842424659,0.0047965,62664.0,62660.0,0.159591]
[1728842424877,0.159584,62663.0,62660.0,0.159591]
[1728842425324,0.0057965,62664.0,62659.0,0.319184]
[1728842425567,0.0057965,62664.0,62663.0,0.159583]
[1728842425789,0.0074345,62664.0,62659.0,0.319187]
[1728842426011,0.0074345,62664.0,62661.0,0.159588]
[1728842426237,0.002638,62664.0,62657.0,0.24042122]
[1728842426483,0.001638,62664.0,62663.0,0.159583]
[1728842426927,0.001638,62664.0,62663.0,0.336983]
[1728842427617,0.004638,62664.0,62663.0,0.336983]
[1728842427869,0.001638,62664.0,62663.0,0.336983]
[1728842428089,0.004638,62664.0,62663.0,0.336983]
[1728842428326,0.009638,62664.0,62663.0,0.336983]
[1728842428777,0.004638,62664.0,62663.0,0.336983]
[1728842429002,0.008638,62664.0,62663.0,0.336983]
[1728842431971,0.001638,62664.0,62663.0,0.336983]
[1728842432187,0.011638,62664.0,62663.0,0.338983]
[1728842432616,0.001638,62664.0,62663.0,0.336983]
[1728842433301,0.006638,62664.0,62663.0,0.337983]
[1728842433995,0.011638,62664.0,62663.0,0.337983]
[1728842434224,0.006638,62664.0,62663.0,0.337983]
[1728842434447,0.006638,62664.0,62663.0,0.342983]
[1728842434908,0.001638,62664.0,62663.0,0.341983]
[1728842435118,0.001638,62664.0,62663.0,0.342983]
[1728842435335,0.007638,62664.0,62663.0,0.342983]
[1728842435817,0.001638,62664.0,62663.0,0.164583]
[1728842436033,0.001638,62664.0,62663.0,0.167583]
[1728842436504,0.001638,62664.0,62663.0,0.008]
[1728842436728,0.001638,62664.0,62663.0,0.167583]
[1728842436948,0.001638,62664.0,62663.0,0.162583]
[1728842437165,0.001638,62664.0,62663.0,0.166583]
[1728842437388,0.001638,62664.0,62663.0,0.162583]
[1728842437847,0.006638,62664.0,62663.0,0.162583]
[1728842438078,0.006638,62664.0,62663.0,0.159583]
[1728842438289,0.014638,62664.0,62663.0,0.160583]
[1728842438965,0.008638,62664.0,62663.0,0.159583]
[1728842439188,0.012638,62664.0,62663.0,0.159583]
[1728842439647,0.012638,62664.0,62661.0,0.159587]
[1728842439860,0.012638,62664.0,62660.0,0.319178]
[1728842440107,0.012638,62664.0,62662.0,0.159586]
[1728842440536,0.005638,62664.0,62660.0,0.319178]
[1728842440755,0.005638,62664.0,62661.0,0.159587]
[1728842440980,0.007638,62664.0,62658.0,0.399692]
[1728842441230,0.003638,62664.0,62662.0,0.159585]
[1728842441505,0.007638,62664.0,62662.0,0.159585]
[1728842441718,0.007638,62664.0,62660.0,0.319182]
[1728842441940,0.007638,62664.0,62661.0,0.159588]
[1728842442153,0.003638,62664.0,62662.0,0.159586]
[1728842442364,0.007638,62664.0,62662.0,0.159586]
[1728842442784,0.003638,62664.0,62662.0,0.159586]
[1728842443008,0.12146791,62664.0,62655.0,0.319205]
[1728842443231,0.15959,62661.0,62656.0,0.55962322]
[1728842443454,0.319187,62660.0,62653.0,0.03199]
[1728842443684,0.11303341,62660.0,62649.0,0.319238]
[1728842443915,0.159605,62655.0,62651.0,0.159613]
[1728842444591,0.319193,62658.0,62649.0,0.319238]
[1728842444804,0.159602,62656.0,62652.0,0.15961]
[1728842445236,0.159605,62655.0,62651.0,0.159613]
[1728842445474,0.165605,62655.0,62651.0,0.160613]
[1728842445697,0.006,62655.0,62653.0,0.159608]
[1728842445903,0.159599,62657.0,62652.0,0.319222]
[1728842445904,0.159603,62656.0,62652.0,0.159611]
[1728842446330,0.166603,62656.0,62652.0,0.160611]
[1728842446549,0.007,62656.0,62652.0,0.001]
[1728842446767,0.005,62655.0,62652.0,0.001]
[1728842447012,0.005,62655.0,62654.0,0.159606]
[1728842447443,0.005,62655.0,62652.0,0.160609]
[1728842447664,0.005,62655.0,62652.0,0.159609]
[1728842447878,0.005,62655.0,62649.0,0.319236]